Cogmind - Beta 14 @@@ ROGUE MODE // 2025.05.04 @ 13:18:05 Player: DGSTER Result: Destroyed by S-43 Plague with Heavy Machine Gun Performance ------------- Evolutions (8) 4000 Regions Visited (16) 3200 Robots Destroyed (156) 780 Value Destroyed (6767) 6767 Prototype IDs (37) 740 Alien Tech Used (0) 0 Bonus (6485) 6485 TOTAL SCORE: 21972 Bonus ------- Triggered High Security 500 High Alert Combat Kills 2112 Follower Combat Kills 2576 Met Imprinter 300 Was Imprinted 300 Met Zhirov 300 Built Enhanced Grunts 300 A7 Reached Mainframe 300 Met R17 at Cetus 500 Friendly Fire -703 Cogmind --------- Core Integrity 0/1450 Matter 270/300 Energy 38/100 System Corruption 28% Temperature Cool (6) Movement Treading (145) Location -2/Research Parts ------- > --- POWER (2) -------- (None) > --- PROPULSION (7) --- Biometal Heavy Treads Biometal Heavy Treads > --- UTILITY (12) ----- Advanced Signal Interpreter > --- WEAPON (2) ------- (None) > --- INVENTORY (5) ---- Centrium Leg Peak State ------------ > --- POWER ------------ Light Antimatter Reactor Light Antimatter Reactor > --- PROPULSION ------- Flexi-carbon Leg Flexi-carbon Leg Flexi-carbon Leg Myomer Leg Myomer Leg Myomer Leg > --- UTILITY ---------- Experimental Heat Sink Experimental Heat Sink Large Storage Unit Zionite Biocell Enhanced Optical Array Advanced Sensor Array Advanced Signal Interpreter Advanced Reaction Control System Centrium Medium Armor Plating > --- WEAPON ----------- Force Rifle Cooled Plasma Rifle > --- INVENTORY -------- Zionite Light DM Reactor Quantum Reactor Light Quantum Reactor Improved Phase Shifter Centrium Medium Armor Plating Centrium Medium Armor Plating Advanced Plasma Rifle Advanced Variable Charge Gun Cooled Phase Gun Zionite Laser-M Matter Neutralizer Advanced KE Penetrator Heavy Shock Bomb Launcher [Rating: 125] Favorites ----------- Power Improved Deuterium Engine Engine Improved Deuterium Engine Power Core Neutrino Core Reactor Light Antimatter Reactor Propulsion Armored Treads Treads Armored Treads Leg Flexi-carbon Leg Flight Unit Nuclear Pulse Array Utility Large Storage Unit Device Improved Sensor Array Storage Large Storage Unit Processor Improved Signal Interpreter Hackware Hacking Suite Protection Light Armor Plating Weapon Improved Spread Laser Energy Gun Improved Spread Laser Energy Cannon Phase Cannon Ballistic Gun Improved KE Penetrator Ballistic Cannon Improved Light Cannon Launcher Heavy Missile Launcher Impact Weapon Heavy Flail Slashing Weapon Phasing Sabre Build | -11 -10 -9 -8 -7 -7 -7 -7 -6 -6 -5 -4 -4 -4 -4 -3 -2 ------- Run | Yrd Mat Mat Mat Fac Low Low Zio Pro Fac Fac Fac Ext Cet Arc Res Res Slots Evolved 16 | . . 2 2 2 . . . . 2 2 2 . . . 2 2 Power 1 | . . . . . . . . . . 1 . . . . . . Propulsion 5 | . . . 1 . . . . . 1 . 2 . . . . 1 Utility 10 | . . 2 1 2 . . . . 1 1 . . . . 2 1 Weapon . | . . . . . . . . . . . . . . . . . Parts Attached 237 | 6 2 20 21 6 2 4 5 10 56 15 15 46 10 2 10 7 Power 30 | 1 . 4 2 . . . 2 1 5 2 3 6 . 1 3 . Engine 15 | 1 . 4 2 . . . 1 1 4 1 1 . . . . . Core 4 | . . . . . . . 1 . . 1 . 2 . . . . Reactor 11 | . . . . . . . . . 1 . 2 4 . 1 3 . Propulsion 53 | 2 . 6 6 1 . 1 . 3 13 3 2 12 . . 1 3 Treads 18 | 2 . . 3 1 . . . 3 4 2 . . . . 1 2 Leg 31 | . . 6 3 . . 1 . . 8 . . 12 . . . 1 Wheel . | . . . . . . . . . . . . . . . . . Hover . | . . . . . . . . . . . . . . . . . Flight 4 | . . . . . . . . . 1 1 2 . . . . . Utility 66 | 1 . 5 6 3 . 3 . 2 18 2 5 17 2 1 1 . Device 33 | . . 1 . 2 . 1 . 1 11 2 4 9 1 1 . . Storage 4 | 1 . 1 . . . . . . . . . 2 . . . . Processor 11 | . . 1 2 1 . . . . 2 . 1 3 . . 1 . Hackware 1 | . . . 1 . . . . . . . . . . . . . Protection 17 | . . 2 3 . . 2 . 1 5 . . 3 1 . . . Artifact . | . . . . . . . . . . . . . . . . . Weapon 88 | 2 2 5 7 2 2 . 3 4 20 8 5 11 8 . 5 4 Energy Gun 28 | 1 . . . 2 1 . 1 . . 4 1 8 5 . 3 2 Energy Cannon 13 | . . . 2 . . . . . . 2 3 2 1 . 1 2 Ballistic Gun 16 | 1 . . 4 . . . . 2 8 . . . 1 . . . Ballistic Cannon 17 | . 2 4 1 . . . 1 2 5 1 1 . . . . . Launcher 12 | . . 1 . . 1 . . . 7 . . 1 1 . 1 . Special Weapon . | . . . . . . . . . . . . . . . . . Impact Weapon 1 | . . . . . . . . . . 1 . . . . . . Slashing Weapon 1 | . . . . . . . 1 . . . . . . . . . Piercing Weapon . | . . . . . . . . . . . . . . . . . Special Melee Weapon . | . . . . . . . . . . . . . . . . . Unidentified Prototypes 21 | . . . 1 1 . . 1 3 . 1 2 7 4 . . 1 Corrupted Parts 6 | . . . . . . . . 2 . 2 . . . 2 . . System Corruption 35 | . . . . . . . . 16 . 8 . . . 11 . . Parts Lost 81 | . . 6 3 . . 2 . . 28 7 6 8 . 7 12 2 Power 10 | . . 2 . . . . . . 2 2 . 1 . 1 2 . Propulsion 26 | . . 2 1 . . 1 . . 10 2 2 1 . 6 1 . Utility 26 | . . . 1 . . 1 . . 10 1 2 5 . . 6 . Weapon 19 | . . 2 1 . . . . . 6 2 2 1 . . 3 2 Highest Loss Streak 12 | . . 4 2 . . 1 . . 11 7 4 2 . 7 12 1 To Critical Strikes 1 | . . . . . . . . . 1 . . . . . . . Average Slot Usage (%) 87 | . 85 74 95 98 100 97 100 100 93 45 34 74 93 64 35 6 Engine 5 | . 14 10 9 7 7 7 7 7 5 3 3 . . . . . Reactor 1 | . . . . . . . . . . . . 5 10 6 2 . Treads 12 | . 28 1 8 23 23 20 15 20 16 8 . . . . . . Leg 9 | . . 19 18 . . . 7 2 8 . . 22 31 9 . 1 Device 12 | . . 3 . 7 15 14 15 15 16 12 10 17 16 21 13 . Storage 6 | . 14 11 9 7 7 7 7 7 5 . . . 10 10 3 . Processor 16 | . . 2 17 22 23 23 23 23 17 5 7 11 10 10 11 4 Protection 5 | . . 3 6 7 7 6 7 6 7 . . 5 8 4 . . Energy Gun 5 | . 2 . . 2 14 15 13 4 . 7 . 4 3 . 2 1 Ballistic Gun 3 | . 2 . . 12 . . . 10 9 . . . . . . . Ballistic Cannon 3 | . 22 20 14 . . . . . 2 . . . . . . . Peak Build Rating 125 | 6 9 15 31 42 42 43 45 65 81 52 82 122 125 125 68 41 Average Rating 50 | 4 8 12 23 38 41 41 43 52 64 39 47 83 115 84 46 12 On Entrance 39 | . 6 9 15 31 41 42 43 43 55 11 28 22 118 125 77 5 Naked Turns . | . . . . . . . . . . . . . . . . . Heaviest Build 72 | 14 18 35 46 45 48 47 46 54 65 34 23 66 72 66 39 7 Greatest Support 150 | 40 40 40 63 63 63 63 40 80 108 56 39 135 135 135 28 150 Greatest Overweight (x) 17 | . . 3 1 . . 1 1 1 1 1 2 3 . 17 12 2 Average Overweight (x) . | . . . . . . . 1 . . . . . . 3 . . Largest Inventory Capacity 15 | 8 8 15 15 15 15 15 15 15 15 5 5 15 15 15 15 5 Average Capacity 13 | 6 8 13 15 15 15 15 15 15 14 5 5 5 15 15 6 5 Most Carried 15 | 2 6 12 15 15 15 15 15 15 15 5 5 6 15 15 15 1 Average Carried 11 | 1 5 9 13 14 14 14 14 14 12 4 3 4 11 14 4 . Final Capacity 15 | 8 8 15 15 15 15 15 15 15 5 5 5 15 15 15 5 5 Final Carried 15 | 2 6 11 15 14 15 15 14 15 5 4 2 6 13 14 . 1 Class Distribution -------------------- 31% | Skirmisher 28% | Mutant 18% | Scavenger-Skirmisher 10% | Scavenger-Mutant 5% | Commander-Skirmisher Dominant Class ---------------- Mutant | -10/Materials Mutant | -9/Materials Mutant | -8/Materials Commander-Skirmisher | -7/Factory Skirmisher | -7/Lower Caves Skirmisher | -7/Lower Caves Skirmisher | -7/Zion Scavenger-Skirmisher | -6/Proximity Caves Scavenger-Skirmisher | -6/Factory Mutant | -5/Factory Mutant | -4/Factory Scavenger-Mutant | -4/Extension Scavenger-Mutant | -4/Cetus Scavenger-Mutant | -4/Archives Scavenger-Scout | -3/Research Mutant | -2/Research Resources | -11 -10 -9 -8 -7 -7 -7 -7 -6 -6 -5 -4 -4 -4 -4 -3 -2 ----------- Run | Yrd Mat Mat Mat Fac Low Low Zio Pro Fac Fac Fac Ext Cet Arc Res Res Matter Collected 4575 | 225 77 590 438 32 235 30 108 181 1579 109 177 572 145 . 77 . Remotely 648 | . . 160 75 . . . . . 413 . . . . . . . Salvage Created 6428 | . 31 758 385 . 160 179 . 85 2754 223 44 1314 348 . 147 . Parts 317 | . 4 42 34 . 5 9 . . 149 5 3 50 12 . 4 . Haulers Intercepted 1 | . . . . . . . . . . . . 1 . . . . Recyclers Shooed 6 | . . . . . . . . . 4 . 1 1 . . . . Parts Field Recycled . | . . . . . . . . . . . . . . . . . Retrieved Matter . | . . . . . . . . . . . . . . . . . Parts Self-Destructed 18 | . . . . . 2 4 3 9 . . . . . . . . Prevented 10 | . . . . . 3 . . 7 . . . . . . . . Kills | -11 -10 -9 -8 -7 -7 -7 -7 -6 -6 -5 -4 -4 -4 -4 -3 -2 ------- Run | Yrd Mat Mat Mat Fac Low Low Zio Pro Fac Fac Fac Ext Cet Arc Res Res Combat Hostiles Destroyed 127 | . 1 18 16 . 3 7 . . 58 3 1 15 3 . 2 . Melee 1 | . . . . . . . . . 1 . . . . . . . Guns 45 | . . . . . 2 7 . . 29 2 . 3 . . 2 . Cannons 41 | . 1 16 15 . . . . . 6 . 1 2 . . . . AOE 27 | . . 2 . . 1 . . . 21 . . 3 . . . . Classes Destroyed 18 | . 1 7 1 . . 1 . . 4 1 . 2 1 . . . Worker 10 | . . 1 1 . . . . . 8 . . . . . . . Builder 3 | . . . . . . . . . 3 . . . . . . . Tunneler 2 | . . 1 . . . . . . . . . 1 . . . . Hauler 1 | . . . . . . . . . . . . 1 . . . . Recycler 4 | . . 3 . . . . . . 1 . . . . . . . Operator 3 | . . 1 2 . . . . . . . . . . . . . Watcher 5 | . . 1 . . . . . . 3 . . . 1 . . . Swarmer 20 | . . . 7 . . . . . 12 1 . . . . . . Saboteur 3 | . . . . . . . . . 3 . . . . . . . Grunt 49 | . 1 12 5 . 2 1 . . 21 . . 6 . . 1 . Brawler 5 | . . . . . . . . . 4 . . 1 . . . . Duelist 6 | . . 1 1 . 1 . . . 1 . . 2 . . . . Protector 2 | . . . . . . . . . . . . 2 . . . . Sentry 13 | . . 5 3 . . . . . 4 1 . . . . . . Hunter 9 | . . . . . . 2 . . 5 . . 2 . . . . Programmer 11 | . . . . . . . . . 8 1 1 . . . 1 . Behemoth 2 | . . . . . . . . . . . . 2 . . . . Cetus Guard 3 | . . . . . . . . . . . . . 3 . . . Z-Courier 1 | . . . . . . . . . . 1 . . . . . . Z-Light 1 | . . . . . . . . . . . . . 1 . . . Wasp 3 | . . . . . . 3 . . . . . . . . . . Thug 1 | . . . . . . 1 . . . . . . . . . . Best Kill Streak 12 | . 1 5 3 . 3 4 . . 9 3 1 12 4 . 2 . Combat Bots Only 10 | . 1 3 3 . 3 4 . . 7 3 1 10 3 . 2 . Max Kills in Single Turn 6 | . 1 3 1 . 1 1 . . 6 1 1 3 2 . 1 . Gunslinging . | . . . . . . . . . . . . . . . . . Exploded 3 | . . 2 . . 1 . . . 3 . . 3 . . . . Melee 1 | . . . . . . . . . 1 . . . . . . . Uniques/NPCs Destroyed . | . . . . . . . . . . . . . . . . . Combat | -11 -10 -9 -8 -7 -7 -7 -7 -6 -6 -5 -4 -4 -4 -4 -3 -2 -------- Run | Yrd Mat Mat Mat Fac Low Low Zio Pro Fac Fac Fac Ext Cet Arc Res Res Hostile Shots Fired 1319 | . 2 114 67 . 18 55 4 7 516 90 101 82 14 . 103 146 Missed 477 | . 1 21 13 . 7 16 2 3 224 39 36 33 6 . 31 45 Damage Taken 16499 | . 44 1344 706 . 168 468 32 66 5073 1249 1264 954 240 896 1588 2407 Core 4225 | . 10 243 127 . 29 54 . . 790 251 518 157 28 . 553 1465 Absorbed by Shields 187 | . . . . . . . . . . . . 134 53 . . . Redirected to Shielding 68 | . . . . . . . . . . . . 55 13 . . . Ignored by Resistances 12 | . . . . . . . . . 12 . . . . . . . Regen/Repaired (Parts) 37 | . . . . . . . 37 . . . . . . . . . Core Remaining (%) 63 | 100 96 39 76 . . . . 88 7 74 . . . 38 57 . Volleys Fired 418 | . 4 52 51 1 8 15 11 7 141 19 22 47 18 . 12 10 Largest 2 | . 2 2 2 2 2 2 2 2 2 2 2 2 1 . 2 1 Hottest 300 | . 78 78 102 56 150 150 150 150 132 300 150 170 105 . 177 94 Shots Fired 689 | . 8 101 104 2 11 30 14 13 237 28 26 65 17 . 23 10 Gun 328 | . 4 . . 2 6 30 6 13 189 20 4 21 8 . 17 8 Cannon 322 | . 4 98 104 . . . 8 . 30 8 22 38 3 . 5 2 Launcher 39 | . . 3 . . 5 . . . 18 . . 6 6 . 1 . Special . | . . . . . . . . . . . . . . . . . Kinetic 454 | . 6 98 98 2 . . 8 11 219 8 4 . . . . . Thermal 188 | . 2 . . . 6 30 6 2 . 20 22 59 11 . 22 8 Explosive 16 | . . 3 . . . . . . 13 . . . . . . . Electromagnetic 31 | . . . 6 . 5 . . . 5 . . 6 6 . 1 2 Robot Hit Streak 20 | . 3 13 9 4 7 12 . 9 18 7 7 11 . . 20 8 Robot Miss Streak 8 | . 4 5 6 3 2 6 . 5 8 2 5 3 . . 1 1 Penetration Max 1 | . . . . . . . . . 1 . . . . . . . Secondary Targets 3 | . . . . . . . . . 1 2 . . . . . . Max Gunslinging Chain 1 | . . . . . . . . . 1 1 . . . . . . Shots Hit Robots 393 | . 4 64 52 2 8 27 . 3 142 17 12 32 . . 21 9 Core Hits 289 | . 2 30 24 3 12 33 . 5 125 5 3 27 10 . 7 3 Critical Kills 10 | . . . . . . . . . 9 . . 1 . . . . Critical Parts Destroyed 11 | . . . . . . . . . 11 . . . . . . . Critical Strikes 33 | . . 5 3 . . . . . 22 1 . 1 . . . 1 Burn 1 | . . . . . . . . . . . . . . . . 1 Meltdown 1 | . . . . . . . . . . . . 1 . . . . Destroy 20 | . . . . . . . . . 20 . . . . . . . Blast 11 | . . 5 3 . . . . . 2 1 . . . . . . Melee Attacks 17 | . . . . . . . 16 . . 1 . . . . . . Impact 1 | . . . . . . . . . . 1 . . . . . . Slashing 16 | . . . . . . . 16 . . . . . . . . . Piercing . | . . . . . . . . . . . . . . . . . Sneak Attacks 1 | . . . . . . . . . . 1 . . . . . . Combat Hostiles . | . . . . . . . . . . . . . . . . . Follow-up Attacks . | . . . . . . . . . . . . . . . . . Damage Inflicted 16963 | . 63 1667 1176 36 255 584 . 82 7807 599 505 2277 573 . 1045 294 Guns 5772 | . 39 . . 36 116 584 . 82 3070 383 118 380 . . 719 245 Cannons 4558 | . 24 1398 1171 . . . . . 606 110 353 665 . . 215 16 Explosions 6246 | . . 257 . . 139 . . . 3977 . 34 1165 573 . 101 . Melee 99 | . . . . . . . . . . 99 . . . . . . Ramming 288 | . . 12 5 . . . . . 154 7 . 67 . . 10 33 Kinetic 6457 | . 37 1398 1065 36 . . . 21 3676 110 114 . . . . . Thermal 4868 | . 26 . . . 116 584 . 61 895 383 391 1233 . . 934 245 Explosive 2892 | . . 257 . . . . . . 2635 . . . . . . . Electromagnetic 2359 | . . . 106 . 139 . . . 447 . . 977 573 . 101 16 Impact 99 | . . . . . . . . . . 99 . . . . . . Slashing . | . . . . . . . . . . . . . . . . . Piercing . | . . . . . . . . . . . . . . . . . Highest Corruption 28 | . . . 1 . . . . 16 11 8 7 7 7 18 4 28 Average Corruption 6 | . . . 1 . . . . 15 4 7 3 7 7 7 2 16 Corruption Purged 1 | . . . . . . . . . 1 . . . . . . . Corruption Blocked . | . . . . . . . . . . . . . . . . . Effects 161 | . . . 7 . . . . 19 43 10 2 47 14 8 1 10 Message Errors 37 | . . . 2 . . . . 5 7 4 1 11 4 2 . 1 Matter Fused 39 | . . . . . . . . 6 13 4 . 8 6 1 . 1 Heat Flow Errors 19 | . . . . . . . . 4 6 . . 3 1 3 . 2 Energy Discharges 15 | . . . . . . . . 1 3 1 . 8 . 1 1 . Parts Rejected 2 | . . . . . . . . . 1 . . . . . . 1 Parts Fused 2 | . . . 1 . . . . . . . . . 1 . . . Data Loss (minor) 25 | . . . 2 . . . . 1 5 . . 12 1 1 . 3 Data Loss (major) 8 | . . . . . . . . 1 4 . . 3 . . . . Misfires 5 | . . . 2 . . . . . 2 . . 1 . . . . Alerts 3 | . . . . . . . . . . 1 1 1 . . . . Misdirections 2 | . . . . . . . . . . . . . . . . 2 Weapon Failures 4 | . . . . . . . . 1 2 . . . 1 . . . Overload Shots 25 | . . . . . . . . . . 3 . 11 1 . 10 . Effects 3 | . . . . . . . . . . 1 . . . . 2 . Heat Surge 2 | . . . . . . . . . . 1 . . . . 1 . Short Circuit 1 | . . . . . . . . . . . . . . . 1 . Overflow Damage 413 | . . . . . . . . . 252 80 . 56 . . 24 1 Projectiles 51 | . . . . . . . . . 24 3 . . . . 24 . Explosions 259 | . . . . . . . . . 211 . . 48 . . . . Melee 103 | . . . . . . . . . 17 77 . 8 . . . 1 Knockbacks 26 | . . 7 12 . . . . . 2 . 2 2 . . . 1 Impact 4 | . . . . . . . . . 1 . . 2 . . . 1 Kinetic 21 | . . 6 12 . . . . . 1 . 2 . . . . . Secondary 1 | . . 1 . . . . . . . . . . . . . . Self-Inflicted Damage 387 | . . 14 . . 13 . . . 306 . 15 . 20 . 5 14 Shots 11 | . . 1 . . 1 . . . 7 . 1 . 1 . . . Rammed 37 | . . . . . . . . . 17 1 . 1 . . 3 15 Targets Rammed 51 | . . 1 1 . . . . . 24 1 . 6 . . 3 15 Kicked 13 | . . 1 1 . . . . . 6 . . 5 . . . . Crushed 1 | . . . . . . . . . 1 . . . . . . . Highest Temperature 457 | . 42 234 195 . 135 282 359 195 233 198 408 184 183 217 457 146 Average Temperature 78 | . 16 50 45 . 72 107 118 88 49 127 193 51 116 108 207 106 Received Heat Transfer 2692 | . 6 549 243 . 42 57 . 12 884 360 63 114 . . 362 . Effects 3 | . . . . . . . . . 1 . 1 . . . 1 . Shutdowns 1 | . . . . . . . . . . . . . . . 1 . Energy Bleed 2 | . . . . . . . . . 1 . 1 . . . . . Siege Activations . | . . . . . . . . . . . . . . . . . Robots Corrupted 12 | . . . 1 . . . . . 2 . . 6 3 . . . Combat Hostiles 11 | . . . 1 . . . . . 1 . . 6 3 . . . Parts Fried 26 | . . . 2 . . . . . 6 . . 11 7 . . . Impact Corruptions 5 | . . . . . . . . . 2 1 . 1 . . . 1 Robots Melted 2 | . . . . . . . . . . 1 . 1 . . . . Combat Hostiles 2 | . . . . . . . . . . 1 . 1 . . . . Parts Melted 17 | . . . . . . . . . . 4 . 6 . . 7 . Heat Transferred 5281 | . 74 . . . 95 490 . 50 600 622 235 1525 . . 1257 333 Parts Sabotaged . | . . . . . . . . . . . . . . . . . Parts Stolen . | . . . . . . . . . . . . . . . . . Parts Stripped . | . . . . . . . . . . . . . . . . . Power Chain Reactions 4 | . . . . . . . . . 2 . 1 1 . . . . Alert | -11 -10 -9 -8 -7 -7 -7 -7 -6 -6 -5 -4 -4 -4 -4 -3 -2 ------- Run | Yrd Mat Mat Mat Fac Low Low Zio Pro Fac Fac Fac Ext Cet Arc Res Res Peak Influence 2040 | . 45 214 340 69 . . . . 2040 1255 827 877 801 355 266 133 Initial 1100 | . . 18 42 29 . . . . 763 1100 614 392 490 240 106 118 Average 486 | . 31 118 159 19 . . . . 907 1117 745 476 618 281 176 120 Maximum Alert Level 5 | . . 1 1 . . . . . 5 4 3 3 3 1 1 . Low Security (%) 35 | 100 100 94 66 100 . . . . . . . . . . 53 100 Level 1 11 | . . 5 33 . . . . . . . . 26 . 100 46 . Level 2 25 | . . . . . . . . . 32 . 16 70 91 . . . Level 3 15 | . . . . . . . . . 37 . 83 2 8 . . . Level 4 9 | . . . . . . . . . 20 100 . . . . . . Level 5 . | . . . . . . . . . 1 . . . . . . . High Security 2 | . . . . . . . . . 7 . . . . . . . Max Security . | . . . . . . . . . . . . . . . . . Squads Dispatched 44 | . 2 2 1 1 . . . . 25 3 3 5 . . 2 . Investigation 6 | . . 1 . . . . . . 3 . 1 1 . . . . Extermination 8 | . . . . 1 . . . . 5 1 1 . . . . . Reinforcement 16 | . 2 1 1 . . . . . 6 1 1 2 . . 2 . Assault 13 | . . . . . . . . . 11 . . 2 . . . . Garrison 1 | . . . . . . . . . . 1 . . . . . . Intercept . | . . . . . . . . . . . . . . . . . Searches Triggered 3 | . . . . . . . . . 3 . . . . . . . Construction Impeded 6 | . . . . . . . . . 3 1 . 2 . . . . Haulers Reinforced 1 | . . . . . . . . . 1 . . . . . . . Active Scanning Responses . | . . . . . . . . . . . . . . . . . Cargo Convoy Interrupts 1 | . . . . . . . . . 1 . . . . . . . Stealth | -11 -10 -9 -8 -7 -7 -7 -7 -6 -6 -5 -4 -4 -4 -4 -3 -2 --------- Run | Yrd Mat Mat Mat Fac Low Low Zio Pro Fac Fac Fac Ext Cet Arc Res Res Distress Signals 19 | . . 3 4 . . . . . 7 . . 2 2 . 1 . Communications Jammed 8 | . . . . . . . . . . . 8 . . . . . Distress Signals 7 | . . . . . . . . . . . 7 . . . . . Times Spotted 315 | . 3 28 27 3 6 10 1 13 118 23 16 40 9 . 12 6 Peak Tracking Total 17 | . 2 4 3 1 3 4 1 4 17 11 7 10 5 . 6 6 Tactical Retreats 22 | . . 1 1 . 2 2 . . 12 1 1 1 . . . 1 Traps | -11 -10 -9 -8 -7 -7 -7 -7 -6 -6 -5 -4 -4 -4 -4 -3 -2 ------- Run | Yrd Mat Mat Mat Fac Low Low Zio Pro Fac Fac Fac Ext Cet Arc Res Res Traps Triggered 18 | . 1 3 2 . . . . . 8 . . 4 . . . . Indirectly 2 | . . . . . . . . . 2 . . . . . . . Trap Hack Attempts . | . . . . . . . . . . . . . . . . . Triggered . | . . . . . . . . . . . . . . . . . Disarmed . | . . . . . . . . . . . . . . . . . Reprogrammed . | . . . . . . . . . . . . . . . . . Reused . | . . . . . . . . . . . . . . . . . Traps Extracted . | . . . . . . . . . . . . . . . . . Installed . | . . . . . . . . . . . . . . . . . Triggered 3 | . . . . . . . . . 3 . . . . . . . Machines | -11 -10 -9 -8 -7 -7 -7 -7 -6 -6 -5 -4 -4 -4 -4 -3 -2 ---------- Run | Yrd Mat Mat Mat Fac Low Low Zio Pro Fac Fac Fac Ext Cet Arc Res Res Machines Disabled 32 | . . 2 1 . . . . . 20 . . 6 1 2 . . Max in Single Turn 9 | . . 1 1 . . . . . 9 . . 2 1 . . . Garrison Access 4 | . . . 1 1 . . . . 2 . . . . . . . Machines Repaired . | . . . . . . . . . . . . . . . . . Machines Dismantled . | . . . . . . . . . . . . . . . . . Machines Sabotaged . | . . . . . . . . . . . . . . . . . Overloaded Fab Kills . | . . . . . . . . . . . . . . . . . Hacking | -11 -10 -9 -8 -7 -7 -7 -7 -6 -6 -5 -4 -4 -4 -4 -3 -2 --------- Run | Yrd Mat Mat Mat Fac Low Low Zio Pro Fac Fac Fac Ext Cet Arc Res Res Machines Accessed 34 | . 2 4 6 4 . . . 1 5 . 2 6 3 . 1 . Terminals 23 | . 2 4 5 . . . . 1 1 . 1 6 3 . . . Fabricators 6 | . . . . 3 . . . . 2 . 1 . . . . . Repair Stations . | . . . . . . . . . . . . . . . . . Recycling Units 1 | . . . . . . . . . 1 . . . . . . . Scanalyzers . | . . . . . . . . . . . . . . . . . Garrison Access 4 | . . . 1 1 . . . . 1 . . . . . 1 . Total Hacks 77 | . 5 13 15 9 . . . 1 11 . 5 8 9 . 1 . Successful 38 | . 2 6 11 4 . . . 1 3 . 3 6 2 . . . Failed 39 | . 3 7 4 5 . . . . 8 . 2 2 7 . 1 . Catastrophic 6 | . 1 1 1 . . . . . 2 . . . . . 1 . Database Lockouts . | . . . . . . . . . . . . . . . . . Manual 77 | . 2 9 4 . . . . 1 24 4 19 6 1 . 5 2 Terminals 53 | . 5 13 14 . . . . 1 1 . 2 8 9 . . . Fabricators 14 | . . . . 8 . . . . 3 . 3 . . . . . Repair Stations . | . . . . . . . . . . . . . . . . . Recycling Units 4 | . . . . . . . . . 4 . . . . . . . Scanalyzers . | . . . . . . . . . . . . . . . . . Garrison Access 6 | . . . 1 1 . . . . 3 . . . . . 1 . Terminal Hacks 25 | . 2 4 8 . . . . 1 1 . 1 6 2 . . . Record 3 | . . . . . . . . 1 . . . . 2 . . . Robot Analysis 1 | . 1 . . . . . . . . . . . . . . . Prototype ID Bank 2 | . 1 . 1 . . . . . . . . . . . . . Open Door 7 | . . . . . . . . . . . 1 6 . . . . Open DSF 1 | . . . . . . . . . 1 . . . . . . . Branch Access Points 1 | . . . 1 . . . . . . . . . . . . . Emergency Access Points 1 | . . . 1 . . . . . . . . . . . . . Alert Level 4 | . . 2 2 . . . . . . . . . . . . . Unreport Threat 2 | . . 1 1 . . . . . . . . . . . . . Locate Traps 2 | . . . 2 . . . . . . . . . . . . . Registered Components 1 | . . 1 . . . . . . . . . . . . . . Fabricator Hacks 5 | . . . . 3 . . . . . . 2 . . . . . Network Status 2 | . . . . 1 . . . . . . 1 . . . . . Build 3 | . . . . 2 . . . . . . 1 . . . . . Repair Station Hacks . | . . . . . . . . . . . . . . . . . Recycling Unit Hacks 1 | . . . . . . . . . 1 . . . . . . . Retrieve Matter 1 | . . . . . . . . . 1 . . . . . . . Scanalyzer . | . . . . . . . . . . . . . . . . . Garrison Access Hacks 3 | . . . 1 1 . . . . 1 . . . . . . . Seal Access 3 | . . . 1 1 . . . . 1 . . . . . . . Unauthorized Hacks 4 | . . 2 2 . . . . . . . . . . . . . Terminals 4 | . . 2 2 . . . . . . . . . . . . . Track 1 | . . . 1 . . . . . . . . . . . . . Botnet 1 | . . 1 . . . . . . . . . . . . . . Operators 2 | . . 1 1 . . . . . . . . . . . . . Fabricators . | . . . . . . . . . . . . . . . . . Repair Stations . | . . . . . . . . . . . . . . . . . Recycling Units . | . . . . . . . . . . . . . . . . . Scanalyzers . | . . . . . . . . . . . . . . . . . Garrison Access . | . . . . . . . . . . . . . . . . . Data Cores Recovered 2 | . . . 2 . . . . . . . . . . . . . Used . | . . . . . . . . . . . . . . . . . Hacking Detections 27 | . 2 3 5 2 . . . 1 4 . 2 3 4 . 1 . Full Trace Events 3 | . 1 . . . . . . . 1 . . 1 . . . . Feedback Events . | . . . . . . . . . . . . . . . . . Feedback Blocked . | . . . . . . . . . . . . . . . . . Robot Schematics Acquired . | . . . . . . . . . . . . . . . . . Robots Built 4 | . . . . 4 . . . . . . . . . . . . Authchips . | . . . . . . . . . . . . . . . . . Time 134 | . . . . 134 . . . . . . . . . . . . Total Robot Build Rating 16 | . . . . 16 . . . . . . . . . . . . Part Schematics Acquired 25 | . . . . . . . . . 25 . . . . . . . Parts Built 3 | . . . . 1 . . . . . . 2 . . . . . Authchips . | . . . . . . . . . . . . . . . . . Time 245 | . . . . 187 . . . . . . 58 . . . . . Total Part Build Rating 21 | . . . . 7 . . . . . . 14 . . . . . Parts Repaired . | . . . . . . . . . . . . . . . . . Time . | . . . . . . . . . . . . . . . . . Parts Recycled . | . . . . . . . . . . . . . . . . . Recycled Matter . | . . . . . . . . . . . . . . . . . Retrieved Matter 129 | . . . . . . . . . 129 . . . . . . . Retrieved Components . | . . . . . . . . . . . . . . . . . Parts Scanalyzed . | . . . . . . . . . . . . . . . . . Part Schematics Acquired . | . . . . . . . . . . . . . . . . . Parts Damaged . | . . . . . . . . . . . . . . . . . Bothacking | -11 -10 -9 -8 -7 -7 -7 -7 -6 -6 -5 -4 -4 -4 -4 -3 -2 ------------ Run | Yrd Mat Mat Mat Fac Low Low Zio Pro Fac Fac Fac Ext Cet Arc Res Res Used RIF Installer . | . . . . . . . . . . . . . . . . . Robots Hacked . | . . . . . . . . . . . . . . . . . Non-combat . | . . . . . . . . . . . . . . . . . Combat . | . . . . . . . . . . . . . . . . . Robot Hacks Applied . | . . . . . . . . . . . . . . . . . Relay Couplers Released 1 | . . . . . . . . . 1 . . . . . . . Machine Destruction 1 | . . . . . . . . . 1 . . . . . . . Fabnet Peak Effective % . | . . . . . . . . . . . . . . . . . Robots Rewired 7 | . . . . . . . . . . . . 7 . . . . Allies Hacked 3 | . . . . . . . . . . 1 2 . . . . . Hacks Repelled . | . . . . . . . . . . . . . . . . . Allies | -11 -10 -9 -8 -7 -7 -7 -7 -6 -6 -5 -4 -4 -4 -4 -3 -2 -------- Run | Yrd Mat Mat Mat Fac Low Low Zio Pro Fac Fac Fac Ext Cet Arc Res Res Total Allies 55 | . . . . 4 . . 4 . 6 2 5 24 5 . 5 . Largest Group 12 | . . . . 4 3 . 4 4 3 1 3 12 7 7 5 . Highest-Rated Group 735 | . . . . 48 36 . 157 157 153 35 288 461 735 722 449 . Highest-Rated Ally 159 | . . . . 12 12 . 41 41 51 35 96 159 159 159 103 . Zionite Dispatches 12 | . . . . . . . . . 2 2 3 3 . . 2 . Heavy 1 | . . . . . . . . . . . . . . . 1 . Light 3 | . . . . . . . . . . . 1 2 . . . . Recon 1 | . . . . . . . . . 1 . . . . . . . Hacker 2 | . . . . . . . . . 1 . . . . . 1 . Demo 1 | . . . . . . . . . . 1 . . . . . . Thermal Resupply 2 | . . . . . . . . . . 1 . 1 . . . . Explosive Resupply 1 | . . . . . . . . . . . 1 . . . . . Trap Resupply 1 | . . . . . . . . . . . 1 . . . . . Total Orders 12 | . . . . . . . . . . . . 2 8 2 . . STAY 1 | . . . . . . . . . . . . 1 . . . . FOLLOW 4 | . . . . . . . . . . . . . 4 . . . GUARD 5 | . . . . . . . . . . . . . 4 1 . . AID 1 | . . . . . . . . . . . . . . 1 . . DROP 1 | . . . . . . . . . . . . 1 . . . . Ally Attacks 420 | . . . . 20 15 . 3 43 54 2 15 162 55 29 22 . Total Damage 15528 | . . . . 245 154 . 33 1004 1369 325 782 6186 2061 1835 1534 . Kills 78 | . . . . 4 . . 1 9 13 1 2 29 6 6 7 . Allies Corrupted 1 | . . . . . . . . . . . . 1 . . . . Allies Melted 1 | . . . . . . . . . . . . 1 . . . . Intel | -11 -10 -9 -8 -7 -7 -7 -7 -6 -6 -5 -4 -4 -4 -4 -3 -2 ------- Run | Yrd Mat Mat Mat Fac Low Low Zio Pro Fac Fac Fac Ext Cet Arc Res Res Robot Analysis Total 1 | . 1 . . . . . . . . . . . . . . . Derelict Logs Recovered 4 | . . . . . 2 1 1 . . . . . . . . . Drone Launches . | . . . . . . . . . . . . . . . . . Drone Recoveries . | . . . . . . . . . . . . . . . . . Zionite Intel Received 7 | . . . . . . . . . 5 . 2 . . . . . Emergency Access 1 | . . . . . . . . . 1 . . . . . . . Component Schematics 1 | . . . . . . . . . 1 . . . . . . . Prototype Schematics 1 | . . . . . . . . . 1 . . . . . . . Unaware Analyses 1 | . . . . . . . . . 1 . . . . . . . Active Terminals 1 | . . . . . . . . . . . 1 . . . . . Depthwide Sectors/0 2 | . . . . . . . . . 1 . 1 . . . . . Exploration | -11 -10 -9 -8 -7 -7 -7 -7 -6 -6 -5 -4 -4 -4 -4 -3 -2 ------------- Run | Yrd Mat Mat Mat Fac Low Low Zio Pro Fac Fac Fac Ext Cet Arc Res Res Turns Passed 16035 | 91 213 1234 1040 1283 847 931 2918 668 3315 284 376 1558 565 291 223 198 Spaces Moved 8936 | 52 111 558 488 739 504 485 1160 355 1892 192 615 948 379 101 196 161 Core 484 | 2 . . . . . . . . 35 20 62 46 . 27 186 106 Treads 4805 | 50 111 54 158 739 504 485 1160 355 1072 100 . . . . 10 7 Legs 2949 | . . 504 330 . . . . . 712 . . 902 379 74 . 48 Wheels . | . . . . . . . . . . . . . . . . . Hover . | . . . . . . . . . . . . . . . . . Flight 698 | . . . . . . . . . 73 72 553 . . . . . Fastest Speed 34 | 50 160 120 120 160 163 163 245 160 40 40 34 50 120 120 50 50 Average Speed 152 | 155 160 175 157 161 163 180 245 175 141 104 39 117 120 292 72 82 Slowest Speed 900 | 160 160 330 190 163 163 245 245 245 245 160 150 190 120 900 650 150 Overloaded Moves . | . . . . . . . . . . . . . . . . . Propulsion Burnouts . | . . . . . . . . . . . . . . . . . Robots Hopped 12 | . . . . . . . . . . 5 7 . . . . . Cave-ins Triggered 1 | . . . . . . . . . 1 . . . . . . . Exploration Rate (%) 46 | 4 25 50 51 17 65 67 88 57 64 7 18 75 94 98 7 4 Regions Visited 16 Branch Regions 7 Pre-discovered Areas 18 | . . . . . 1 . 2 . 6 . 9 . . . . . Known Exits Taken 12 | . . . . 1 1 1 1 1 1 1 1 1 1 1 1 . Unknown Exits Taken 4 | 1 1 1 1 . . . . . . . . . . . . . Scrap Searched 7 | . . . . . 1 1 1 4 . . . . . . . . Spaces Dug 25 | . . . . . . . . . 25 . . . . . . . Terrain Destroyed 274 | . . 28 1 . . . . 2 219 6 13 5 . . . . Melee . | . . . . . . . . . . . . . . . . . Projectile 71 | . . 4 1 . . . . 2 45 6 8 5 . . . . AOE 202 | . . 24 . . . . . . 173 . 5 . . . . . Terrain Rammed . | . . . . . . . . . . . . . . . . . Walls Destroyed . | . . . . . . . . . . . . . . . . . Machines Disabled . | . . . . . . . . . . . . . . . . . Actions | -11 -10 -9 -8 -7 -7 -7 -7 -6 -6 -5 -4 -4 -4 -4 -3 -2 --------- Run | Yrd Mat Mat Mat Fac Low Low Zio Pro Fac Fac Fac Ext Cet Arc Res Res Total 10577 | 59 139 703 653 827 517 509 1199 387 2272 235 708 1324 471 104 254 216 Wait 625 | . 17 56 65 70 3 5 2 7 116 5 53 128 53 . 27 18 Move 8898 | 51 110 557 487 738 503 484 1159 354 1891 182 601 947 378 100 195 161 Hop 10 | . . . . . . . . . . 4 6 . . . . . Pick Up 90 | 2 4 13 15 5 1 1 2 4 16 4 2 13 5 . . 3 Fast Attach 101 | 6 2 9 6 2 . 1 1 . 17 8 10 26 4 . 4 5 Attach 57 | . . 5 4 3 . 1 1 . 13 5 5 9 3 1 5 2 Detach 16 | . . . . . . . . . 2 1 1 4 5 2 1 . Swap 79 | . . 6 11 1 2 2 3 10 26 2 . 11 3 1 1 . Drop 98 | . 2 4 13 7 . . 4 5 23 3 8 19 2 . 6 2 Fire 418 | . 4 52 51 1 8 15 11 7 141 19 22 47 18 . 12 10 Melee 17 | . . . . . . . 16 . . 1 . . . . . . Ram 19 | . . . . . . . . . . . . 1 . . 3 15 Kick 13 | . . 1 1 . . . . . 6 . . 5 . . . . Crush 18 | . . . . . . . . . 17 1 . . . . . . Escape Stasis 27 | . . . . . . . . . 4 . . 23 . . . . Rewire 91 | . . . . . . . . . . . . 91 . . . . Trap . | . . . . . . . . . . . . . . . . . Miscellaneous . | . . . . . . . . . . . . . . . . . Route ------- -11/Scrapyard -10/Materials -9/Materials (discovered 4 exits: *Mat x2 / [*Min x2]) -8/Materials -7/Factory (discovered 2 exits: *Sto / *Low) -7/Lower Caves -7/Lower Caves (discovered 2 exits: *Fac / *Zio) -7/Zion -6/Proximity Caves -6/Factory -5/Factory -4/Factory -4/Extension (discovered 3 exits: *Res x2 / *Cet) -4/Cetus (discovered 3 exits: *Res x2 / *Arc) -4/Archives (discovered 3 exits: *Res / *Hub x2) -3/Research -2/Research History --------- Turn | Location | Event 15 | -11/Scrapyard | Discovered new exit (range 16) 92 | -11/Scrapyard | Entered Materials 261 | -10/Materials | Discovered new exit (range 15) 305 | -10/Materials | Entered another Materials area 305 | -9/Materials | Evolved 2 slots: Utility x2 312 | -9/Materials | Build established: Mutant 431 | -9/Materials | Discovered new exit (range 14) 825 | -9/Materials | Discovered new exit (range 15) 973 | -9/Materials | Core integrity fell below 50% 1005 | -9/Materials | Lost 4 parts (1p1n2w) 1042 | -9/Materials | Discovered new exit (range 7) 1457 | -9/Materials | Discovered new exit (range 9) 1539 | -9/Materials | Entered another Materials area 1539 | -8/Materials | Evolved 2 slots: Propulsion x1, Utility x1 2547 | -8/Materials | Discovered new exit (range 17) 2579 | -8/Materials | Entered Factory 2579 | -7/Factory | Evolved 2 slots: Utility x2 2959 | -7/Factory | Fabricated S-27 Virus? 3243 | -7/Factory | Build established: Commander-Skirmisher 3481 | -7/Factory | Fabricated Adv. Myomer Leg (x1) 3742 | -7/Factory | Discovered new exit (range 19) 3774 | -7/Factory | Discovered new exit (range 12) 3776 | -7/Factory | Identified exit to Storage 3792 | -7/Factory | Identified exit to Lower Caves 3862 | -7/Factory | Entered Lower Caves 3862 | -7/Lower Caves | Accompanied by 4 allies 3875 | -7/Lower Caves | Attracted the attention of an 0b10 checkpoint 3929 | -7/Lower Caves | Lost 4 allies 4160 | -7/Lower Caves | Build established: Skirmisher 4171 | -7/Lower Caves | Learned 4 Factory zone layouts 4247 | -7/Lower Caves | Encountered a Warlord checkpoint 4646 | -7/Lower Caves | Learned location of Extension (-4) 4675 | -7/Lower Caves | Discovered new exit (range 9) 4688 | -7/Lower Caves | Identified exit to Lower Caves 4709 | -7/Lower Caves | Entered another Lower Caves area 4800 | -7/Lower Caves | Learned Factory terminal intel 4923 | -7/Lower Caves | Ambushed by wild Derelicts 5083 | -7/Lower Caves | Discovered new exit (range 17) 5107 | -7/Lower Caves | Identified exit to Factory 5149 | -7/Lower Caves | Spotted B-75 Beast 5595 | -7/Lower Caves | Discovered new exit (range 17) 5635 | -7/Lower Caves | Identified exit to Zion 5640 | -7/Lower Caves | Entered Zion 6032 | -7/Zion | Given the Hacking Drone Bay 6355 | -7/Zion | Learned location of Armory (-4) 6473 | -7/Zion | Met Imprinter 7021 | -7/Zion | Discovered new exit (range 13) 7050 | -7/Zion | Identified exit to Proximity Caves 8072 | -7/Zion | Imprinted 8074 | -7/Zion | Declared Zion's savior 8558 | -7/Zion | Entered Proximity Caves 8558 | -6/Proximity Caves | Accompanied by 4 allies 8630 | -6/Proximity Caves | Spotted B-75 Beast 8665 | -6/Proximity Caves | Allies destroyed B-75 Beast 8699 | -6/Proximity Caves | System corruption reached 10% 8720 | -6/Proximity Caves | Encountered a Derelict guarding a broken Freighter 8988 | -6/Proximity Caves | Build established: Scavenger-Skirmisher 9002 | -6/Proximity Caves | Spotter reported a threat 9070 | -6/Proximity Caves | Spotter reported a threat 9092 | -6/Proximity Caves | Spotter reported a threat 9176 | -6/Proximity Caves | Spotter reported a threat 9182 | -6/Proximity Caves | Spotter reported a threat 9213 | -6/Proximity Caves | Discovered exit to Factory (range 6) 9226 | -6/Proximity Caves | Entered Factory 9226 | -6/Factory | Accompanied by 2 allies 9226 | -6/Factory | Evolved 2 slots: Propulsion x1, Utility x1 9228 | -6/Factory | Loaded intel: 26 terminal locations 9576 | -6/Factory | Search patrols dispatched 9721 | -6/Factory | Retrieved Zion intel report: Depthwide Sectors/-6 9866 | -6/Factory | Retrieved Zion intel report: Component Schematics 9926 | -6/Factory | Search patrols dispatched 9934 | -6/Factory | Retrieved Zion intel report: Prototype Schematics 10018 | -6/Factory | Cargo convoy interrupted 10166 | -6/Factory | Retrieved Zion intel report: Unaware Analyses 10167 | -6/Factory | Zion Recon squad teleported in 10276 | -6/Factory | Search patrols dispatched 10626 | -6/Factory | First assault squad dispatched 10697 | -6/Factory | Retrieved Zion intel report: Emergency Access 10698 | -6/Factory | Zion Hacker squad teleported in 10793 | -6/Factory | Lost 3 allies 10817 | -6/Factory | Terminal network hard line cut 11461 | -6/Factory | Crushed by falling debris 11599 | -6/Factory | Lost 3 parts (3u) 11884 | -6/Factory | Build established: Mutant 12286 | -6/Factory | High security lockdown imminent 12366 | -6/Factory | High security lockdown engaged 12401 | -6/Factory | Spotted B-75 Beast 12410 | -6/Factory | Allied Derelicts emerged from ambush trap array 12432 | -6/Factory | Destroyed 7 combat bots 12486 | -6/Factory | Core integrity fell below 50% 12489 | -6/Factory | System corruption reached 10% 12522 | -6/Factory | Lost 11 parts (1p4n4u2w) 12534 | -6/Factory | Discovered new exit (range 16) 12536 | -6/Factory | Core integrity fell below 20% 12540 | -6/Factory | Identified exit to Factory 12541 | -6/Factory | Entered another Factory area 12541 | -5/Factory | Evolved 2 slots: Power x1, Utility x1 12548 | -5/Factory | Zion Thermal Resupply teleported in 12736 | -5/Factory | Garrison activated, responded to threat 12737 | -5/Factory | Zion Demo squad teleported in 12811 | -5/Factory | Lost 7 parts (2p2n1u2w) 12818 | -5/Factory | Discovered new exit (range 13) 12823 | -5/Factory | Identified exit to Factory 12825 | -5/Factory | Entered another Factory area 12825 | -4/Factory | Evolved 2 slots: Propulsion x2 12847 | -4/Factory | Spotted B-86 Titan 12867 | -4/Factory | Zion Light squad teleported in 12942 | -4/Factory | Fabricated Quantum Capacitor (x2) 13018 | -4/Factory | Retrieved Zion intel report: Active Terminals 13019 | -4/Factory | Zion Trap Resupply teleported in 13050 | -4/Factory | Retrieved Zion intel report: Depthwide Sectors/-4 13051 | -4/Factory | Zion Explosive Resupply teleported in 13189 | -4/Factory | Lost 4 parts (1n2u1w) 13199 | -4/Factory | Discovered new exit (range 6) 13200 | -4/Factory | Identified exit to Extension 13201 | -4/Factory | Entered Extension 13243 | -4/Extension | Core integrity fell below 50% 13281 | -4/Extension | Zion Light squad teleported in 13389 | -4/Extension | Rescued a captive Derelict 13398 | -4/Extension | Rescued a captive Derelict 13435 | -4/Extension | Zion Thermal Resupply teleported in 13619 | -4/Extension | Found Prototype Protection 13619 | -4/Extension | Identified Zio. Weapon Casing 13752 | -4/Extension | Lost 4 allies 13788 | -4/Extension | Rescued a captive Derelict 13803 | -4/Extension | Rescued a captive Derelict 13892 | -4/Extension | Rescued a captive Derelict 13918 | -4/Extension | Build established: Scavenger-Mutant 13935 | -4/Extension | Rescued a captive Derelict 13936 | -4/Extension | Rescued a captive Derelict 14101 | -4/Extension | Spotted B-86 Titan 14113 | -4/Extension | Rescued a captive Derelict 14178 | -4/Extension | Spotted B-86 Titan 14194 | -4/Extension | Destroyed B-86 Titan 14203 | -4/Extension | Destroyed B-86 Titan 14241 | -4/Extension | Lost 9 allies 14251 | -4/Extension | Discovered new exit (range 14) 14278 | -4/Extension | Identified exit to Research 14360 | -4/Extension | Rescued a captive Derelict 14378 | -4/Extension | Zion Light squad teleported in 14444 | -4/Extension | Terminal network hard line cut 14453 | -4/Extension | Rescued A7 14586 | -4/Extension | Build established: Scavenger-Skirmisher 14699 | -4/Extension | Discovered new exit (range 22) 14700 | -4/Extension | Discovered exit to Research (range 21) 14701 | -4/Extension | First assault squad dispatched 14742 | -4/Extension | Destroyed 10 combat bots 14746 | -4/Extension | Identified exit to Cetus 14759 | -4/Extension | Disrupted transfer network 14759 | -4/Extension | Entered Cetus 14759 | -4/Cetus | Accompanied by 3 allies (A7) 14764 | -4/Cetus | Acquired a Cetus Manufacturing Module code from A7 14774 | -4/Cetus | Spotted Cetus Guard 14774 | -4/Cetus | Spotted Cetus Guard 14776 | -4/Cetus | Spotted Cetus Guard 14776 | -4/Cetus | Spotted Cetus Guard 14783 | -4/Cetus | Allies destroyed Cetus Guard 14791 | -4/Cetus | Destroyed Cetus Guard 14791 | -4/Cetus | Destroyed Cetus Guard 14792 | -4/Cetus | Destroyed Cetus Guard 14840 | -4/Cetus | Discovered exit to Research (range 21) 14891 | -4/Cetus | Build established: Messiah-Mutant 14911 | -4/Cetus | Started Cetus Manufacturing Module 14936 | -4/Cetus | Manufactured an Enhanced Grunt 14950 | -4/Cetus | Escorted A7 to Cetus Mainframe 14961 | -4/Cetus | Manufactured an Enhanced Grunt 14986 | -4/Cetus | Manufactured an Enhanced Grunt 15011 | -4/Cetus | Manufactured an Enhanced Grunt 15036 | -4/Cetus | Manufactured an Enhanced Grunt 15046 | -4/Cetus | Discovered new exit (range 22) 15070 | -4/Cetus | Identified exit to Archives 15090 | -4/Cetus | Spotted Cetus Guard 15091 | -4/Cetus | Spotted Cetus Guard 15091 | -4/Cetus | Spotted Cetus Guard 15098 | -4/Cetus | Spotted Cetus Guard 15099 | -4/Cetus | Allies destroyed Cetus Guard 15112 | -4/Cetus | Allies destroyed Cetus Guard 15119 | -4/Cetus | Allies destroyed Cetus Guard 15123 | -4/Cetus | Allies destroyed Cetus Guard 15123 | -4/Cetus | Discovered exit to Research (range 22) 15136 | -4/Cetus | Scared off Revision 17 15232 | -4/Cetus | Build established: Scavenger-Mutant 15324 | -4/Cetus | Entered Archives 15324 | -4/Archives | Accompanied by 7 allies (A7) 15329 | -4/Archives | Received a hacking code to weaken MAIN.C 15349 | -4/Archives | Met Zhirov 15355 | -4/Archives | Reinforcements dispatched to Archives 15358 | -4/Archives | Unable to access archive contents 15367 | -4/Archives | Discovered new exit (range 19) 15388 | -4/Archives | Identified exit to Hub_04(d) 15402 | -4/Archives | Discovered exit to Hub_04(d) (range 22) 15408 | -4/Archives | Discovered exit to Research (range 22) 15414 | -4/Archives | Zhirov detonated Archives 15445 | -4/Archives | Lost 7 parts (1p6n) 15595 | -4/Archives | System corruption reached 10% 15615 | -4/Archives | Entered Research 15615 | -3/Research | Evolved 2 slots: Utility x2 15656 | -3/Research | Spotted B-86 Titan 15665 | -3/Research | Zion Heavy squad teleported in 15728 | -3/Research | Zion Hacker squad teleported in 15794 | -3/Research | Lost 5 allies 15831 | -3/Research | Discovered new exit (range 15) 15838 | -3/Research | Identified exit to Research 15838 | -3/Research | Entered another Research area 15838 | -2/Research | Evolved 2 slots: Propulsion x1, Utility x1 15866 | -2/Research | Lost 12 parts (2p1n6u3w) 15909 | -2/Research | System corruption reached 10% 15938 | -2/Research | Core integrity fell below 50% 16000 | -2/Research | Core integrity fell below 20% 16036 | -2/Research | Destroyed by S-43 Plague with Heavy Machine Gun Last Messages --------------- 15989_ Dropped Com. HERF Cannon. 15990_ Slammed into P-80 Master. 15991_ System corrupted: Heat flow error (+164). 15991_ Slammed into P-80 Master. 15991_ Adv. Signal Interpreter broken. 15991_ Destabilizing: Short circuit. 15992_ Slammed into P-80 Master. 15996_ Destabilizing: System corrupted (+2). 15997_ Slammed into P-80 Master. 15997_ Destroyed Mic. Antimatter Reactor. 15997_ P-80 Master system corrupted by crushing effect. 15998_ Slammed into P-80 Master. 16000_ P-80 Master knocked back. 16000_ Destabilizing: System corrupted (+2). 16001_ Slammed into P-80 Master. 16002_ P-80 Master resets P-80 Master, system corruption cleaned. 16013_ System corrupted: Matter fused (-10). 16025_ Acquired Biometal Heavy Treads. 16028_ System corrupted: Component data lost. 16030_ Acquired Biometal Heavy Treads. Map ----- +----------------------------------------------------+ | ?????????????????????????????????????????????????? | | ?????????????????????????????????????????????????? | | ?????????????????????????????????????????????????? | | ?????????????????????????????????????????????????? | | ?????????????????????????????????????????????????? | | ?????????????????????????????????????????????????? | | ?????????????????????????????????????????????????? | | ?????????????????????????????????????????????????? | | ?????????????????????????????????????????????????? | | ?????????????????????????????????????????????????? | | ?????????????????????????????????????????????????? | | ?????????????????????????????????????????????????? | | ?????????????????????????????????????????????????? | | ?????????????????????????????????????????????????? | | ????????????????????##???????????????????????????? | | ?????????????????###T #??????????????????????????? | | ?????????????????# ??????????????????????????? | | ?????????????????# ??????????????????????????? | | ?????????????????# ??????????????????????????? | | ?????????????????# ??????????????????????????? | | ?????????????????# ##########?????????????????? | | ?????????????????# # = #?????????????????? | | ?????????????????# # =! #?????????????????? | | ?????????????????# #= ! #????#######??????? | | ?????????????????# # #????# #??????? | | ?????????????????# # s@ #????# #??????? | | ?????????????????# s #????# #??????? | | ?????????????????# #s #????# #??????? | | ?????????????????# # #????# #??????? | | ?????????????????# # #????# #??????? | | ?????????????????# ##########????# #??????? | | ?????????????????# #?????????????# #??????? | | ?????????????????# #?????????????# ######## | | ?????????????????# #?????????????# ## | | ?????????????????# #?????????????# ## | | ????????########## #?????????????# ## """ | | ????????# # #################+#### """ | | ????????# # # """ | | ????????# "" # # | | ????????# """ # + | | ????????# """ + # | | ????????# # ###+############# # | | ????????# # # ] # # # | | ????????# # # # + + | | ????????# ###### """# # # | | ????????##########????# """# = # ##+#### | | ??????????????????????# """######?# #??? | | ??????????????????????# """#??????#/##+## #??? | | ??????????????????????# """#????? ## #### | | ??????????????????????# ?????# ## %%%% | +----------------------------------------------------+ Best States ------------- Heat Dissipation 98 Coolant Potential 160 Energy Generation 41 Energy Capacity 940 Matter Stores 300 Matter Capacity 300 Sight Range 22 Robot Scan Range 16 Terrain Scan Range 14 Terrain Scan Density 85 Jamming Range 16 Armor Coverage 625 Resistance: KI 20 Weapon Shielding 100 Phase Shifting 10 Evasion (%) 77 Targeting Accuracy 26 Recoil Reduction 4 Particle Charging 25 Offensive Hacking 10 Item Schematics ----------------- Katana | -6/Factory | Z-intel EM Disruption Field | -6/Factory | Z-intel Lyr. Medium Armor Plating | -6/Factory | Z-intel Datajack | -6/Factory | Z-intel Hvy. Flak Cannon | -6/Factory | Z-intel Plasma Rifle | -6/Factory | Z-intel Lrg. Storage Unit | -6/Factory | Z-intel Nuclear Pulse Thruster | -6/Factory | Z-intel Hvy. Reflective Plating | -6/Factory | Z-intel Adv. ECM Suite | -6/Factory | Z-intel Med. Treads | -6/Factory | Z-intel Matter Compressor | -6/Factory | Z-intel Imp. System Restoration Module | -6/Factory | Z-intel Prc. Rocket Launcher | -6/Factory | Z-intel Biomechanical Wings | -6/Factory | Z-intel Imp. Airjet | -6/Factory | Z-intel Antimatter Cannon | -6/Factory | Z-intel Adv. Beam Rifle | -6/Factory | Z-intel Cld. Airjet | -6/Factory | Z-intel Imp. Heavy Laser | -6/Factory | Z-intel Cld. Cesium-ion Thruster | -6/Factory | Z-intel Enh. Autogun | -6/Factory | Z-intel Com. Ion Cannon | -6/Factory | Z-intel Prc. Grenade Launcher | -6/Factory | Z-intel Force Rifle | -6/Factory | Z-intel Robot Schematics ------------------ None Fabricated ------------ S-27 Virus | x4 | -7/Factory | Preloaded Adv. Myomer Leg | x1 | -7/Factory | Preloaded Quantum Capacitor | x2 | -4/Factory | Preloaded Alien Tech Used ----------------- None Achievements -------------- Dodgeball, But With Guns Friend Of Zion Challenges ------------ None Game ------ Seed OvertunedSuperquantumSpiker Manual? 0 Play Time 02:22:26 Cumulative 61.4 hours Start 2025.05.02 @ 11:33:57 End 2025.05.04 @ 13:18:05 Sessions 5 Manual Loads 0 Difficulty Rogue Special Mode None Game No. 71 Rogue 70 Adventurer 1 Explorer 0 Win Type - Total 1 Types 1/0/0/0/0/0/0/0/0 Lore% 39 Gallery% 46 Achievement% 42 Wizard Run 0 Options --------- Layout 0 ASCII 0 Keyboard 0 Movement Numpad Keybinds 0 Fullscreen 1 Font 18/SmallcapsGlow Map View 76x50 Zoom Use 0% Tactical HUD 1 Map Filters NONE Filters NONE Steam 1 RUN: 25df43b4-35c4-41c7-899b-ff74ff3b88af